[Event "XIV American Continental-ch 2019"]
[Site "Sao Paulo"]
[Date "2019.07.06"]
[Round "1.1"]
[White "Araujo, Sergio Murilo"]
[Black "Iturrizaga Bonelli, Eduardo"]
[Result "0-1"]
[ECO "E48"]
[WhiteElo "2090"]
[BlackElo "2625"]
[Annotator "RC"]
[PlyCount "66"]
[EventDate "2019.07.05"]
[EventType "swiss"]
[EventCountry "BRA"]
[SourceTitle "playchess.com"]
[Source "ChessBase"]
[SourceQuality "1"]
[TimeControl "40/5400+30:1800+30"]

1. d4 {[%emt 0:00:35]} Nf6 {[%emt 0:00:00]} 2. c4 {[%emt 0:00:08]} e6 {[%emt 0:00:00]} 3. Nc3 {[%emt 0:00:14]} Bb4 {[%emt 0:00:00]} 4. e3 {[%emt 0:00:10]} O-O {[%emt 0:00:00]} 5. Bd3 {[%emt 0:01:17]} d5 {[%emt 0:00:05]} 6. Nge2 {[%emt 0:00:31]} b6 {[%emt 0:01:28]} 7. O-O {[%emt 0:01:43]} Bb7 {[%emt 0:00:05]} 8. cxd5 {[%emt 0:00:15]} exd5 {[%emt 0:00:05]} 9. Qc2 {[%emt 0:04:49]} Re8 {[%emt 0:00:05]} 10. Bd2 {[%emt 0:03:20]} a6 {[%emt 0:00:24]} 11. Rac1 {[%emt 0:02:20]} Nbd7 {[%emt 0:00:19]} 12. Ng3 {[%emt 0:00:26]} Rc8 {[%emt 1:33:29]} 13. a3 {[%emt 0:06:32]} Bd6 {[%emt 0:00:00]} 14. Nf5 {[%emt 0:05:37]} Bf8 {[%emt 0:00:00]} 15. b4 {[%emt 1:09:33]} Ne4 {[%emt 0:00:00]} 16. Ng3 {[%emt 0:00:00]} Ndf6 {[%emt 0:00:00]} 17. Qb2 {[%emt 0:00:00]} Bd6 {[%emt 0:00:00]} 18. Ncxe4 {[%emt 0:00:00]} dxe4 {[%emt 0:00:00]} 19. Be2 {[%emt 0:00:00]} g6 {[%emt 0:00:00]} 20. Rfd1 {[%emt 0:00:00]} h5 {[%emt 0:00:00]} 21. Bc3 {[%emt 0:00:00]} Nd5 {[%emt 0:00:00]} 22. Nf1 {[%emt 0:00:00]} Qg5 {[%emt 0:00:00]} 23. Bd2 {[%emt 0:00:00]} Ne7 {[%emt 0:00:00]} 24. Be1 {[%emt 0:00:00]} Nf5 {[%emt 0:00:00]} 25. Ng3 {[%emt 0:00:00]} Nh6 {[%emt 0:00:00]} 26. Bf1 {[%emt 0:00:00]} Ng4 {[%emt 0:00:00]} 27. Be2 {[%emt 0:00:00]} Nxh2 {[%emt 0:00:00]} 28. Kxh2 {[%emt 0:00:00]} h4 {[%emt 0:00:00]} 29. Qb3 {[%emt 0:00:00]} hxg3+ {[%emt 0:00:00]} 30. fxg3 {[%emt 0:00:00]} Kg7 {[%emt 0:00:00]} 31. Kg1 {[%emt 0:00:00]} Rh8 {[%emt 0:00:00]} 32. Bf1 {[%emt 0:00:00]} Rh5 {[%emt 0:00:00]} 33. Kf2 {[%emt 0:00:00]} Qg4 {[%emt 0:00:00]} 0-1

[Event "XIV American Continental-ch 2019"]
[Site "Sao Paulo"]
[Date "2019.07.06"]
[Round "1.2"]
[White "Leitao, Rafael"]
[Black "Carvalho, Herbert Abreu"]
[Result "1-0"]
[ECO "D90"]
[WhiteElo "2616"]
[BlackElo "2089"]
[Annotator "RC"]
[PlyCount "53"]
[EventDate "2019.07.05"]
[EventType "swiss"]
[EventCountry "BRA"]
[SourceTitle "playchess.com"]
[Source "ChessBase"]
[SourceQuality "1"]
[TimeControl "40/5400+30:1800+30"]

1. d4 {[%emt 0:00:00]} Nf6 {[%emt 0:01:38]} 2. c4 {[%emt 0:00:11]} c6 {[%emt 0:00:44]} 3. Nf3 {[%emt 0:00:19]} g6 {[%emt 0:01:12]} 4. Nc3 {[%emt 0:08:05]} d5 {[%emt 0:00:09]} 5. cxd5 {[%emt 0:01:03]} cxd5 {[%emt 0:00:13]} 6. Bf4 {[%emt 0:00:14]} a6 {[%emt 0:03:40]} 7. e3 {[%emt 0:00:56]} Bg7 {[%emt 0:00:48]} 8. h3 {[%emt 0:01:36]} O-O {[%emt 1:25:36]} 9. Bd3 {[%emt 1:22:06]} Nc6 {[%emt 0:00:00]} 10. Rc1 Bf5 {[%emt 0:00:00]} 11. Bxf5 {[%emt 0:00:00]} gxf5 {[%emt 0:00:00]} 12. g4 {[%emt 0:00:00]} fxg4 {[%emt 0:00:00]} 13. hxg4 {[%emt 0:00:00]} Ne4 {[%emt 0:00:00]} 14. Qd3 {[%emt 0:00:00]} Qa5 {[%emt 0:00:00]} 15. Ng5 {[%emt 0:00:00]} e5 {[%emt 0:00:00]} 16. dxe5 {[%emt 0:00:00]} Nxe5 {[%emt 0:00:00]} 17. Bxe5 {[%emt 0:00:00]} Bxe5 {[%emt 0:00:00]} 18. Ngxe4 {[%emt 0:00:00]} dxe4 {[%emt 0:00:00]} 19. Qxe4 {[%emt 0:00:00]} Rfc8 {[%emt 0:00:00]} 20. Rh5 {[%emt 0:00:00]} Re8 {[%emt 0:00:00]} 21. Qxh7+ {[%emt 0:00:00]} Kf8 22. Qh6+ {[%emt 0:00:00]} Ke7 {[%emt 0:00:00]} 23. f4 {[%emt 0:00:00]} Bxc3+ {[%emt 0:00:00]} 24. Rxc3 {[%emt 0:00:00]} Qb4 {[%emt 0:00:00]} 25. Re5+ {[%emt 0:00:00]} Kd7 {[%emt 0:00:00]} 26. Rd5+ {[%emt 0:00:00]} Ke7 {[%emt 0:00:00]} 27. a3 {[%emt 0:00:00]} 1-0

[Event "XIV American Continental-ch 2019"]
[Site "Sao Paulo"]
[Date "2019.07.06"]
[Round "1.3"]
[White "Adasme Fredes, Mauricio"]
[Black "Delgado Ramirez, Neuris"]
[Result "0-1"]
[ECO "A37"]
[WhiteElo "2088"]
[BlackElo "2605"]
[Annotator "RC"]
[PlyCount "100"]
[EventDate "2019.07.05"]
[EventType "swiss"]
[EventCountry "BRA"]
[SourceTitle "playchess.com"]
[Source "ChessBase"]
[SourceQuality "1"]
[TimeControl "40/5400+30:1800+30"]

1. Nf3 {[%emt 0:01:26]} c5 {[%emt 0:00:00]} 2. c4 {[%emt 0:00:11]} Nc6 {[%emt 0:00:25]} 3. Nc3 {[%emt 0:00:24]} g6 {[%emt 0:00:16]} 4. g3 {[%emt 0:01:22]} Bg7 {[%emt 0:00:06]} 5. Bg2 {[%emt 0:00:05]} e5 {[%emt 0:00:25]} 6. O-O {[%emt 0:00:57]} Nge7 {[%emt 0:01:58]} 7. d3 {[%emt 0:10:19]} O-O {[%emt 0:00:09]} 8. Ne1 {[%emt 0:01:30]} d6 {[%emt 0:00:21]} 9. Nc2 {[%emt 0:00:13]} Be6 {[%emt 0:00:13]} 10. Rb1 {[%emt 0:01:16]} d5 {[%emt 0:00:35]} 11. cxd5 {[%emt 0:00:20]} Nxd5 {[%emt 0:00:03]} 12. Ne3 {[%emt 0:00:31]} Nde7 {[%emt 1:31:29]} 13. a3 {[%emt 0:03:14]} a5 {[%emt 0:00:30]} 14. Ne4 {[%emt 0:08:18]} b6 {[%emt 0:00:00]} 15. Bd2 {[%emt 0:01:40]} a4 {[%emt 0:00:00]} 16. Bc3 {[%emt 0:05:22]} Bb3 {[%emt 0:00:00]} 17. Qd2 {[%emt 0:01:16]} f5 {[%emt 0:00:00]} 18. Ng5 {[%emt 0:00:19]} h6 {[%emt 0:00:00]} 19. Nf3 {[%emt 0:02:47]} g5 {[%emt 0:00:00]} 20. Nc4 {[%emt 0:01:41]} Qc7 {[%emt 0:00:00]} 21. Qc1 {[%emt 0:57:19]} b5 {[%emt 0:00:00]} 22. Ncd2 {[%emt 0:00:00]} Ba2 {[%emt 0:00:00]} 23. Ra1 {[%emt 0:00:00]} Be6 {[%emt 0:00:00]} 24. Qc2 {[%emt 0:00:00]} Qd6 {[%emt 0:00:00]} 25. b3 {[%emt 0:00:00]} axb3 {[%emt 0:00:00]} 26. Nxb3 {[%emt 0:00:00]} c4 {[%emt 0:00:00]} 27. dxc4 {[%emt 0:00:00]} bxc4 {[%emt 0:00:00]} 28. Nbd2 {[%emt 0:00:00]} e4 {[%emt 0:00:00]} 29. Bxg7 {[%emt 0:00:00]} Kxg7 {[%emt 0:00:00]} 30. Qc3+ {[%emt 0:00:00]} Rf6 {[%emt 0:00:00]} 31. Nxc4 {[%emt 0:00:00]} Bxc4 {[%emt 0:00:00]} 32. Qxc4 {[%emt 0:00:00]} exf3 {[%emt 0:00:00]} 33. Bxf3 {[%emt 0:00:00]} Ne5 {[%emt 0:00:00]} 34. Qb3 {[%emt 0:00:00]} Rb8 {[%emt 0:00:00]} 35. Qc3 {[%emt 0:00:00]} Rc8 {[%emt 0:00:00]} 36. Qb3 {[%emt 0:00:00]} Qb6 {[%emt 0:00:00]} 37. Rfb1 {[%emt 0:00:00]} Qxb3 38. Rxb3 {[%emt 0:00:00]} Nxf3+ 39. exf3 {[%emt 0:00:00]} Rfc6 {[%emt 0:00:00]} 40. Rbb1 {[%emt 0:00:00]} Kf6 {[%emt 0:00:00]} 41. Kg2 {[%emt 0:25:57]} Ra6 42. Rb4 {[%emt 0:01:53]} Rc2 {[%emt 0:00:00]} 43. a4 {[%emt 0:00:53]} Re6 {[%emt 0:00:00]} 44. a5 {[%emt 0:00:44]} Ree2 {[%emt 0:00:00]} 45. a6 {[%emt 0:01:31]} Rxf2+ {[%emt 0:00:00]} 46. Kg1 {[%emt 0:00:01]} Rg2+ {[%emt 0:00:00]} 47. Kf1 {[%emt 0:00:56]} Nd5 {[%emt 0:00:00]} 48. Rb3 {[%emt 0:00:27]} Rxh2 {[%emt 0:00:00]} 49. Kg1 {[%emt 0:00:15]} Rcg2+ {[%emt 0:00:00]} 50. Kf1 {[%emt 0:00:11]} Ra2 {[%emt 0:00:00]} 0-1

[Event "XIV American Continental-ch 2019"]
[Site "Sao Paulo"]
[Date "2019.07.06"]
[Round "1.4"]
[White "Gareyev, Timur"]
[Black "Caceres, Diego"]
[Result "1-0"]
[ECO "E95"]
[WhiteElo "2588"]
[BlackElo "2087"]
[Annotator "RC"]
[PlyCount "61"]
[EventDate "2019.07.05"]
[EventType "swiss"]
[EventCountry "BRA"]
[SourceTitle "playchess.com"]
[Source "ChessBase"]
[SourceQuality "1"]
[TimeControl "40/5400+30:1800+30"]

1. Nf3 {[%emt 0:02:49]} Nf6 {[%emt 0:00:00]} 2. c4 {[%emt 0:00:08]} g6 {[%emt 0:00:24]} 3. Nc3 {[%emt 0:00:08]} Bg7 {[%emt 0:00:17]} 4. e4 {[%emt 0:00:29]} d6 {[%emt 0:00:11]} 5. d4 {[%emt 0:00:04]} O-O {[%emt 0:00:09]} 6. Be2 {[%emt 0:00:03]} e5 {[%emt 0:01:21]} 7. O-O {[%emt 0:00:06]} Nbd7 {[%emt 0:00:27]} 8. Re1 {[%emt 0:04:07]} Re8 {[%emt 0:07:49]} 9. Bf1 {[%emt 0:00:11]} exd4 {[%emt 0:03:38]} 10. Nxd4 {[%emt 0:00:03]} Nc5 {[%emt 0:00:59]} 11. f3 {[%emt 1:27:22]} Nfd7 {[%emt 0:05:03]} 12. Be3 {[%emt 0:00:30]} Ne5 {[%emt 0:09:25]} 13. Qd2 {[%emt 0:00:00]} Bd7 {[%emt 0:12:29]} 14. Rad1 {[%emt 0:00:00]} Na4 {[%emt 0:02:24]} 15. Nxa4 {[%emt 0:00:00]} Bxa4 {[%emt 0:00:08]} 16. b3 {[%emt 0:00:00]} Bd7 {[%emt 0:01:13]} 17. Bg5 {[%emt 0:00:00]} Bf6 {[%emt 0:08:56]} 18. Bxf6 {[%emt 0:00:00]} Qxf6 {[%emt 0:00:02]} 19. f4 {[%emt 0:00:00]} Nc6 {[%emt 0:07:44]} 20. Nb5 {[%emt 0:00:00]} Qd8 {[%emt 0:10:00]} 21. h3 {[%emt 0:00:00]} Ne7 {[%emt 0:27:51]} 22. Nc3 {[%emt 0:00:00]} Be6 {[%emt 0:00:00]} 23. e5 {[%emt 0:00:00]} Nf5 {[%emt 0:00:00]} 24. Ne4 {[%emt 0:00:00]} dxe5 {[%emt 0:00:00]} 25. Qf2 {[%emt 0:00:00]} Qe7 {[%emt 0:00:07]} 26. fxe5 {[%emt 0:00:00]} Red8 {[%emt 0:00:25]} 27. g4 {[%emt 0:00:00]} Ng7 {[%emt 0:00:41]} 28. Nf6+ {[%emt 0:00:00]} Kh8 {[%emt 0:00:06]} 29. Qh4 {[%emt 0:00:00]} h5 {[%emt 0:01:47]} 30. Qg5 {[%emt 0:00:00]} Qc5+ {[%emt 0:00:46]} 31. Kh1 {[%emt 0:00:00]} 1-0

[Event "XIV American Continental-ch 2019"]
[Site "Sao Paulo"]
[Date "2019.07.06"]
[Round "1.5"]
[White "Caceres Vasquez, Sergio"]
[Black "Pichot, Alan"]
[Result "0-1"]
[ECO "E46"]
[WhiteElo "2081"]
[BlackElo "2579"]
[Annotator "RC"]
[PlyCount "62"]
[EventDate "2019.07.05"]
[EventType "swiss"]
[EventCountry "BRA"]
[SourceTitle "playchess.com"]
[Source "ChessBase"]
[SourceQuality "1"]
[TimeControl "40/5400+30:1800+30"]

1. d4 {[%emt 0:00:00]} Nf6 {[%emt 0:00:00]} 2. c4 {[%emt 0:00:00]} e6 {[%emt 0:00:00]} 3. Nc3 {[%emt 0:00:38]} Bb4 {[%emt 0:00:15]} 4. e3 {[%emt 0:00:06]} O-O {[%emt 0:00:07]} 5. Nge2 {[%emt 0:00:14]} d5 {[%emt 0:00:45]} 6. a3 {[%emt 0:00:35]} Be7 {[%emt 0:00:34]} 7. cxd5 exd5 {[%emt 0:00:07]} 8. g3 {[%emt 0:00:39]} Nbd7 {[%emt 0:00:19]} 9. Bg2 {[%emt 0:00:15]} Nb6 {[%emt 0:00:09]} 10. O-O {[%emt 0:00:25]} Re8 {[%emt 0:00:47]} 11. f3 {[%emt 0:04:24]} c5 {[%emt 0:00:52]} 12. Re1 {[%emt 0:06:11]} a5 {[%emt 1:32:05]} 13. dxc5 {[%emt 0:07:06]} Bxc5 {[%emt 0:00:00]} 14. Nd4 {[%emt 0:00:06]} a4 {[%emt 0:01:00]} 15. Re2 {[%emt 0:35:39]} Nc4 {[%emt 0:00:00]} 16. Qd3 {[%emt 0:07:28]} h5 {[%emt 0:00:00]} 17. Rb1 {[%emt 0:08:39]} b6 {[%emt 0:00:00]} 18. Qd1 {[%emt 0:03:31]} Qd7 {[%emt 0:00:00]} 19. Re1 {[%emt 0:07:47]} Bb7 {[%emt 0:00:00]} 20. Kh1 {[%emt 0:05:03]} Re7 {[%emt 0:00:00]} 21. Bd2 {[%emt 0:04:45]} Rae8 {[%emt 0:00:00]} 22. Qc1 {[%emt 0:01:52]} Ba6 {[%emt 0:00:00]} 23. Bf1 Nxd2 {[%emt 0:00:00]} 24. Qxd2 {[%emt 0:02:41]} Bxf1 {[%emt 0:00:00]} 25. Rxf1 {[%emt 0:00:28]} Rxe3 {[%emt 0:00:00]} 26. Kg2 {[%emt 0:00:49]} h4 {[%emt 0:00:00]} 27. Rf2 {[%emt 0:00:49]} Nh7 {[%emt 0:00:00]} 28. Rd1 {[%emt 0:00:33]} Ng5 {[%emt 0:00:00]} 29. gxh4 {[%emt 0:03:01]} Nh3 {[%emt 0:00:00]} 30. Rff1 {[%emt 0:00:35]} Rd3 {[%emt 0:00:00]} 31. Qc1 {[%emt 0:00:30]} Rxd4 {[%emt 0:08:30]} 0-1

[Event "XIV American Continental-ch 2019"]
[Site "Sao Paulo"]
[Date "2019.07.06"]
[Round "1.6"]
[White "Mecking, Henrique"]
[Black "Araujo, Jose Roberto"]
[Result "1-0"]
[ECO "E88"]
[WhiteElo "2576"]
[BlackElo "2079"]
[Annotator "RC"]
[PlyCount "47"]
[EventDate "2019.07.05"]
[EventType "swiss"]
[EventCountry "BRA"]
[SourceTitle "playchess.com"]
[Source "ChessBase"]
[SourceQuality "1"]
[TimeControl "40/5400+30:1800+30"]

1. d4 {[%emt 0:00:00]} Nf6 {[%emt 0:00:55]} 2. c4 {[%emt 0:00:00]} g6 {[%emt 0:00:13]} 3. Nc3 {[%emt 0:00:00]} Bg7 {[%emt 0:00:13]} 4. e4 {[%emt 0:00:00]} d6 {[%emt 0:00:06]} 5. f3 {[%emt 0:00:00]} O-O {[%emt 0:00:09]} 6. Be3 {[%emt 0:00:00]} e5 {[%emt 0:00:35]} 7. d5 {[%emt 0:00:00]} c6 {[%emt 0:00:42]} 8. Qd2 {[%emt 0:02:36]} cxd5 {[%emt 0:00:15]} 9. cxd5 {[%emt 0:00:04]} a6 {[%emt 0:00:19]} 10. Bd3 {[%emt 0:01:10]} Nbd7 {[%emt 0:00:58]} 11. Nge2 {[%emt 0:00:12]} b5 {[%emt 0:03:06]} 12. O-O {[%emt 0:02:25]} Bb7 {[%emt 0:01:25]} 13. b4 {[%emt 0:03:00]} Ne8 {[%emt 0:19:04]} 14. g4 {[%emt 0:11:26]} Nb6 {[%emt 0:04:24]} 15. a4 {[%emt 0:01:09]} Nc4 {[%emt 0:01:01]} 16. Bxc4 {[%emt 0:00:02]} bxc4 {[%emt 0:00:09]} 17. Ng3 {[%emt 0:00:11]} Nf6 {[%emt 0:02:17]} 18. Kh1 {[%emt 0:03:24]} h5 {[%emt 0:09:22]} 19. gxh5 {[%emt 0:01:38]} Nxh5 {[%emt 0:00:11]} 20. Nxh5 {[%emt 0:00:27]} gxh5 {[%emt 0:00:05]} 21. Rg1 {[%emt 0:01:53]} f6 {[%emt 0:16:35]} 22. Bh6 {[%emt 0:02:27]} Rf7 {[%emt 0:00:06]} 23. Bxg7 {[%emt 0:12:00]} Rxg7 {[%emt 0:01:02]} 24. Qh6 {[%emt 0:00:06]} 1-0

[Event "XIV American Continental-ch 2019"]
[Site "Sao Paulo"]
[Date "2019.07.06"]
[Round "1.7"]
[White "Takano, Nicholas Ryo"]
[Black "Supi, Luis Paulo"]
[Result "0-1"]
[ECO "B33"]
[WhiteElo "2077"]
[BlackElo "2562"]
[Annotator "RC"]
[PlyCount "58"]
[EventDate "2019.07.05"]
[EventType "swiss"]
[EventCountry "BRA"]
[SourceTitle "playchess.com"]
[Source "ChessBase"]
[SourceQuality "1"]
[TimeControl "40/5400+30:1800+30"]

1. e4 {[%emt 0:00:00]} c5 {[%emt 0:01:09]} 2. Nf3 {[%emt 0:00:00]} e6 {[%emt 0:00:16]} 3. d4 cxd4 {[%emt 0:00:05]} 4. Nxd4 {[%emt 0:00:00]} a6 {[%emt 0:00:07]} 5. Nc3 {[%emt 0:00:00]} Qc7 {[%emt 0:02:11]} 6. Bd3 {[%emt 0:00:05]} Bc5 {[%emt 0:02:00]} 7. Nb3 {[%emt 0:00:27]} Be7 {[%emt 0:00:01]} 8. O-O {[%emt 0:00:19]} d6 {[%emt 0:00:10]} 9. Qe2 {[%emt 0:00:46]} Nf6 {[%emt 0:06:57]} 10. Bd2 {[%emt 0:00:42]} Nc6 {[%emt 0:00:53]} 11. Kh1 {[%emt 0:02:01]} O-O {[%emt 0:01:21]} 12. f4 {[%emt 0:02:15]} b5 {[%emt 0:02:33]} 13. a3 {[%emt 0:05:53]} Bb7 {[%emt 0:00:21]} 14. Rae1 {[%emt 0:00:40]} g6 {[%emt 0:10:03]} 15. Rf3 {[%emt 0:18:48]} Rfe8 {[%emt 0:05:32]} 16. Rh3 {[%emt 0:06:23]} Bf8 {[%emt 0:04:30]} 17. a4 {[%emt 0:06:43]} bxa4 {[%emt 0:03:58]} 18. Nxa4 {[%emt 0:00:08]} Bg7 {[%emt 0:07:15]} 19. Bc3 {[%emt 0:01:38]} e5 {[%emt 0:00:23]} 20. fxe5 {[%emt 0:06:02]} Nxe5 {[%emt 0:04:10]} 21. Na5 {[%emt 0:03:13]} Bc8 {[%emt 0:01:20]} 22. Rg3 {[%emt 0:02:24]} Bd7 {[%emt 0:00:45]} 23. Ra1 {[%emt 0:01:45]} d5 {[%emt 0:02:17]} 24. Rg5 {[%emt 0:05:07]} Neg4 {[%emt 0:03:30]} 25. g3 {[%emt 0:00:32]} Nxe4 26. Bxe4 {[%emt 0:01:44]} Rxe4 {[%emt 0:00:24]} 27. Qf3 {[%emt 0:00:23]} Rae8 {[%emt 0:04:06]} 28. Bxg7 {[%emt 0:00:35]} Re1+ 29. Rxe1 {[%emt 0:00:08]} Rxe1+ {[%emt 0:00:22]} 0-1

[Event "XIV American Continental-ch 2019"]
[Site "Sao Paulo"]
[Date "2019.07.06"]
[Round "1.8"]
[White "Perez Ponsa, Federico"]
[Black "Cordero, Daniela"]
[Result "1-0"]
[ECO "C08"]
[WhiteElo "2560"]
[BlackElo "2076"]
[Annotator "RC"]
[PlyCount "71"]
[EventDate "2019.07.05"]
[EventType "swiss"]
[EventCountry "BRA"]
[SourceTitle "playchess.com"]
[Source "ChessBase"]
[SourceQuality "1"]
[TimeControl "40/5400+30:1800+30"]

1. e4 {[%emt 0:00:00]} e6 {[%emt 0:00:00]} 2. d4 {[%emt 0:00:00]} d5 {[%emt 0:00:00]} 3. Nd2 {[%emt 0:00:00]} c5 {[%emt 0:00:00]} 4. exd5 {[%emt 0:00:49]} exd5 {[%emt 0:00:00]} 5. Ngf3 {[%emt 0:00:07]} Nf6 {[%emt 0:00:09]} 6. Bb5+ {[%emt 0:00:39]} Bd7 7. Bxd7+ {[%emt 0:00:09]} Nbxd7 {[%emt 0:00:23]} 8. O-O {[%emt 0:00:11]} Be7 {[%emt 0:00:09]} 9. dxc5 {[%emt 0:00:58]} Nxc5 {[%emt 0:00:19]} 10. Nb3 {[%emt 0:00:21]} Nce4 {[%emt 0:00:27]} 11. Nfd4 {[%emt 0:00:21]} Qd7 {[%emt 0:00:28]} 12. f3 {[%emt 0:00:42]} Nd6 {[%emt 0:00:34]} 13. Nc5 {[%emt 0:00:21]} Qc8 {[%emt 0:02:12]} 14. Nd3 {[%emt 0:00:14]} O-O {[%emt 0:00:35]} 15. Be3 {[%emt 0:01:03]} Re8 {[%emt 0:04:46]} 16. Bf2 {[%emt 0:03:33]} a6 {[%emt 0:09:52]} 17. Re1 {[%emt 0:06:06]} Nc4 {[%emt 0:10:33]} 18. b3 {[%emt 0:04:06]} Nd6 {[%emt 0:01:04]} 19. Qd2 {[%emt 0:05:25]} Bf8 {[%emt 0:09:32]} 20. Bh4 {[%emt 0:06:06]} Rxe1+ {[%emt 0:03:55]} 21. Rxe1 {[%emt 0:00:08]} Nde8 {[%emt 0:00:10]} 22. Re2 {[%emt 0:09:36]} b5 {[%emt 0:12:26]} 23. Bf2 {[%emt 0:07:02]} Rb8 {[%emt 0:09:06]} 24. g4 {[%emt 0:02:02]} g6 {[%emt 0:10:01]} 25. Nf4 {[%emt 0:12:37]} h6 {[%emt 0:07:17]} 26. Kg2 {[%emt 0:04:51]} Qd7 {[%emt 0:14:47]} 27. Nd3 {[%emt 0:01:12]} Rc8 {[%emt 0:01:39]} 28. Bg3 {[%emt 0:03:00]} Qa7 {[%emt 0:01:17]} 29. Ne5 {[%emt 0:00:39]} Bc5 {[%emt 0:01:40]} 30. Bf2 {[%emt 0:02:11]} Kg7 {[%emt 0:00:38]} 31. Qd3 {[%emt 0:07:58]} b4 {[%emt 0:00:43]} 32. Nxg6 {[%emt 0:01:23]} fxg6 {[%emt 0:00:40]} 33. Ne6+ {[%emt 0:00:02]} Kh7 {[%emt 0:00:27]} 34. Nxc5 {[%emt 0:00:29]} a5 {[%emt 0:00:37]} 35. Bd4 {[%emt 0:02:09]} Qc7 {[%emt 0:00:29]} 36. Qa6 {[%emt 0:01:24]} 1-0

[Event "XIV American Continental-ch 2019"]
[Site "Sao Paulo"]
[Date "2019.07.06"]
[Round "1.9"]
[White "Almeida Junior, Alvaro Alves de"]
[Black "Fier, Alexandr"]
[Result "0-1"]
[ECO "B31"]
[WhiteElo "2076"]
[BlackElo "2547"]
[Annotator "RC"]
[PlyCount "66"]
[EventDate "2019.07.05"]
[EventType "swiss"]
[EventCountry "BRA"]
[SourceTitle "playchess.com"]
[Source "ChessBase"]
[SourceQuality "1"]
[TimeControl "40/5400+30:1800+30"]

1. e4 {[%emt 0:00:00]} c5 {[%emt 0:00:00]} 2. Nf3 {[%emt 0:00:17]} Nc6 {[%emt 0:00:00]} 3. Bb5 {[%emt 0:02:10]} g6 {[%emt 0:00:10]} 4. O-O {[%emt 0:00:29]} Bg7 {[%emt 0:00:05]} 5. Bxc6 bxc6 {[%emt 0:00:09]} 6. d3 {[%emt 0:01:08]} d6 {[%emt 0:01:13]} 7. c3 {[%emt 0:04:04]} Nf6 {[%emt 0:00:49]} 8. h3 {[%emt 0:04:01]} O-O {[%emt 0:00:06]} 9. Be3 {[%emt 0:00:23]} c4 {[%emt 0:02:53]} 10. e5 {[%emt 0:08:57]} Nd5 {[%emt 0:00:22]} 11. exd6 {[%emt 0:14:18]} Nxe3 {[%emt 0:01:02]} 12. fxe3 {[%emt 0:00:09]} Rb8 {[%emt 0:06:43]} 13. b3 {[%emt 0:09:58]} cxd3 {[%emt 0:03:13]} 14. Qxd3 {[%emt 0:04:37]} Qxd6 {[%emt 0:03:11]} 15. Qxd6 {[%emt 0:04:31]} exd6 {[%emt 0:00:04]} 16. Rd1 {[%emt 0:05:01]} d5 {[%emt 0:00:11]} 17. Nbd2 {[%emt 0:01:15]} Re8 {[%emt 0:00:31]} 18. Kf2 {[%emt 0:01:13]} Rb7 {[%emt 0:02:48]} 19. Rac1 {[%emt 0:07:10]} Rbe7 {[%emt 0:00:13]} 20. c4 {[%emt 0:04:56]} Rxe3 {[%emt 0:01:05]} 21. cxd5 {[%emt 0:00:04]} Re2+ {[%emt 0:00:11]} 22. Kf1 {[%emt 0:00:02]} Ba6 {[%emt 0:00:16]} 23. Nc4 {[%emt 0:00:04]} cxd5 {[%emt 0:00:13]} 24. Rxd5 {[%emt 0:00:25]} Rxa2 {[%emt 0:00:06]} 25. Rd2 {[%emt 0:02:33]} Rxd2 {[%emt 0:06:29]} 26. Nfxd2 {[%emt 0:00:06]} Bb5 {[%emt 0:00:49]} 27. Nf3 {[%emt 0:03:50]} Re3 {[%emt 0:01:39]} 28. Nfd2 {[%emt 0:01:18]} Bh6 {[%emt 0:02:01]} 29. Rc2 {[%emt 0:06:09]} Rd3 {[%emt 0:00:06]} 30. Ke2 {[%emt 0:01:14]} Rxd2+ {[%emt 0:00:08]} 31. Rxd2 {[%emt 0:00:10]} Bxd2 {[%emt 0:00:03]} 32. Kxd2 Bxc4 {[%emt 0:00:30]} 33. bxc4 Kf8 {[%emt 0:00:30]} 0-1

[Event "XIV American Continental-ch 2019"]
[Site "Sao Paulo"]
[Date "2019.07.06"]
[Round "1.10"]
[White "Gonzalez Vidal, Yuri"]
[Black "Pereira, Geanfrancesco"]
[Result "1-0"]
[ECO "B27"]
[WhiteElo "2547"]
[BlackElo "2068"]
[Annotator "RC"]
[PlyCount "59"]
[EventDate "2019.07.05"]
[EventType "swiss"]
[EventCountry "BRA"]
[SourceTitle "playchess.com"]
[Source "ChessBase"]
[SourceQuality "1"]
[TimeControl "40/5400+30:1800+30"]

1. e4 {[%emt 0:00:00]} c5 {[%emt 0:00:27]} 2. Nf3 {[%emt 0:00:00]} g6 {[%emt 0:00:17]} 3. d4 {[%emt 0:00:40]} cxd4 4. Qxd4 {[%emt 0:00:40]} Nf6 {[%emt 0:00:17]} 5. Nc3 {[%emt 0:01:52]} Nc6 {[%emt 0:03:08]} 6. Qa4 {[%emt 0:00:13]} d6 {[%emt 0:07:16]} 7. e5 {[%emt 0:00:34]} Ng4 {[%emt 0:02:01]} 8. exd6 {[%emt 0:36:10]} Qxd6 {[%emt 0:03:41]} 9. Bf4 {[%emt 0:17:19]} e5 {[%emt 0:09:34]} 10. Nb5 {[%emt 0:08:44]} Qb4+ {[%emt 0:02:33]} 11. Qxb4 {[%emt 0:00:06]} Bxb4+ {[%emt 0:00:38]} 12. Bd2 {[%emt 0:04:49]} O-O {[%emt 0:02:19]} 13. h3 {[%emt 0:01:14]} Bxd2+ {[%emt 0:01:36]} 14. Nxd2 {[%emt 0:00:14]} Nb4 {[%emt 0:03:39]} 15. Na3 {[%emt 0:00:40]} Nf6 {[%emt 0:00:36]} 16. c3 {[%emt 0:00:59]} Nbd5 {[%emt 0:00:37]} 17. Nac4 {[%emt 0:01:49]} e4 {[%emt 0:01:52]} 18. Nd6 {[%emt 0:02:39]} e3 {[%emt 0:00:10]} 19. N2c4 {[%emt 0:01:22]} exf2+ 20. Kxf2 {[%emt 0:00:05]} Rd8 {[%emt 0:16:56]} 21. Be2 {[%emt 0:03:39]} Rb8 {[%emt 0:03:48]} 22. a4 {[%emt 0:00:38]} Be6 {[%emt 0:00:51]} 23. Rhd1 {[%emt 0:04:13]} Nf4 {[%emt 0:00:50]} 24. Bf3 {[%emt 0:01:34]} g5 {[%emt 0:05:45]} 25. Na5 {[%emt 0:01:49]} Bd5 {[%emt 0:05:42]} 26. Ndxb7 {[%emt 0:02:54]} Rxb7 27. Nxb7 {[%emt 0:00:10]} Rb8 {[%emt 0:01:01]} 28. Bxd5 {[%emt 0:01:01]} N6xd5 {[%emt 0:00:04]} 29. c4 {[%emt 0:02:01]} Nf6 {[%emt 0:00:24]} 30. Rd8+ {[%emt 0:00:30]} 1-0